[Event "87th Tata Steel Challengers 2025"]
[Site "Wijk aan Zee"]
[Date "2025.02.02"]
[Round "13.5"]
[White "Nogerbek, Kazybek"]
[Black "Oro, Faustino"]
[Result "1-0"]
[Annotator "TA"]
[ECO "A13"]
[WhiteElo "2514"]
[BlackElo "2447"]
[PlyCount "165"]
[EventDate "2025.01.13"]
[EventType "tourn"]
[EventCountry "NED"]
[SourceTitle "playchess.com"]
[Source "ChessBase"]
[SourceQuality "1"]
[TimeControl "40/6000+30:20/3000+30:900+30"]

{[%evp 12,165,20,2,49,44,46,45,48,39,31,3,71,75,75,72,69,68,74,78,79,77,75,72,76,58,73,72,72,73,97,87,95,83,85,81,89,79,86,77,96,62,238,88,93,87,97,93,115,86,74,35,43,35,59,47,94,51,62,66,75,47,51,27,66,60,64,56,48,31,29,27,32,36,38,35,38,28,40,12,73,77,122,76,110,101,117,117,117,117,117,117,117,117,117,117,117,117,123,116,117,117,117,117,117,117,117,117,117,116,117,117,120,120,119,119,219,159,235,235,249,256,238,200,1137,1306,1264,1210,1025,141,199,143,142,122,122,122,127,122,247,224,190,138,180,129,137,136,445,447,345,265,507,463,440,440,5601,5397]} 1. Nf3 {[%emt 0:00:04]} d5 {[%emt 0:00:23]} 2. e3 {[%emt 0:00:10]} c5 {[%emt 0:01:37]} 3. b3 {[%emt 0:00:12]} Nf6 {[%emt 0:01:51]} 4. Bb2 {[%emt 0:00:11]} e6 {[%emt 0:04:27]} 5. c4 {[%emt 0:00:30]} Nc6 {[%emt 0:00:58]} 6. cxd5 {[%emt 0:00:16]} exd5 {[%emt 0:00:19]} 7. Bb5 {[%emt 0:00:27]} Qb6 {[%emt 0:03:28] A13: English Opening: 1...e6.} (7... Bd6 $11 {might be stronger.}) 8. Nc3 $14 {[%emt 0:04:02]} Bd7 {[%emt 0:05:16]} 9. O-O {[%emt 0:05:34]} Be7 {[%emt 0:00:32] White is slightly better.} 10. Rc1 $146 {[%emt 0:02:11]} (10. d4 O-O 11. dxc5 Bxc5 12. Be2 Ne7 13. Rc1 Rfd8 14. Bd3 Rac8 15. Ne5 Be8 16. Ne2 {1-0 D'Costa,L (2375)-Eriksson,D (2253) Rilton Cup 51st 2023 (4)}) 10... O-O {[%emt 0:02:58]} 11. Be2 {[%emt 0:03:44]} Qd8 {[%emt 0:03:30]} (11... d4 $11 {remains equal.} 12. Na4 Qa5) 12. Na4 {[%emt 0:04:12]} b6 {[%emt 0:01:45][%cal Od5d4]} 13. d4 {[%emt 0:00:07]} cxd4 {[%emt 0:05:56]} 14. Nxd4 {[%emt 0:00:37]} Nxd4 {[%emt 0:03:41]} 15. Qxd4 {[%emt 0:00:53]} Rc8 {[%emt 0:00:26]} 16. Rxc8 {[%emt 0:11:53]} Qxc8 {[%emt 0:01:16]} 17. Nc3 {[%emt 0:01:29][%csl Od5][%cal Ba4c3,Bc3e2,Be2g3,Bg3h5,Bh5f4][%mdl 32] White attacks a weakness} Bc6 {[%emt 0:03:51]} 18. Rd1 {[%emt 0:07:41]} Rd8 {[%emt 0:02:37]} 19. Bf3 {[%emt 0:03:20]} h6 {[%emt 0:04:33]} 20. Ne2 {[%emt 0:02:06]} Bb7 {[%emt 0:09:47]} 21. h3 {[%emt 0:01:55]} Qc7 {[%emt 0:05:16]} 22. Ng3 {[%emt 0:02:01]} Bc8 {[%emt 0:03:27]} 23. Rc1 {[%emt 0:00:59]} Qb8 {[%emt 0:03:49]} 24. Qd3 {[%emt 0:01:44]} Ne8 {[%emt 0:08:04]} 25. Nh5 {[%emt 0:11:27]} (25. Bxd5 Be6 26. e4 Bf6 $17) 25... Be6 {[%emt 0:02:49]} 26. Rc6 {[%emt 0:07:02][%cal Oc6e6]} Bd7 {[%emt 0:02:17] [#]} (26... Bd6 $14) 27. Rc2 {[%emt 0:08:37]} (27. Rxh6 $1 $18 {and the rest is easy. Threatening mate with Qh7+.} gxh6 28. Qd4) 27... Be6 $16 {[%emt 0:00:07]} 28. Nf4 {[%emt 0:00:40][%cal Of4e6]} Qd6 {[%emt 0:01:25]} 29. Qa6 {[%emt 0:02:24]} Qd7 {[%emt 0:02:23]} 30. Nd3 {[%emt 0:10:14] White has more active pieces.} Bd6 {[%emt 0:06:26]} 31. Bd4 {[%emt 0:06:36]} Bf5 {[%emt 0:01:10] ...Nc7 is the strong threat.} 32. Rd2 {[%emt 0:04:19]} (32. Bxd5 Nc7 33. Rxc7 Qxc7 $11 (33... Bxc7 $2 34. Bc4 $19)) 32... Rc8 {[%emt 0:00:53]} 33. Rd1 {[%emt 0:02:43]} (33. Bxd5 $2 Nc7 34. Qxa7 Nxd5 35. Qxd7 Bxd7 $19) 33... Bb8 {[%emt 0:03:39]} (33... Be4 $14) 34. a4 {[%emt 0:04:00]} Be4 {[%emt 0:04:12]} 35. Bg4 {[%emt 0:01:51]} Bf5 {[%emt 0:00:15]} 36. Bxf5 Qxf5 {[%emt 0:00:02]} 37. Nb4 {[%emt 0:01:54][%cal Ob4d5]} Nd6 {[%emt 0:04:02][%cal Be8d6,Bd6e4,Be4f2][%mdl 32]} 38. Qe2 {[%emt 0:00:18]} Ne4 {[%emt 0:01:16] [#]} 39. Nxd5 $1 {[%emt 0:00:55]} Bd6 {[%emt 0:01:02] Inhibits Ne7+.} (39... Qxd5 $2 40. Qg4 $18) 40. Qf3 {[%emt 0:00:36]} (40. f4 {simplifies} Qe6 41. Bb2 Bf8 42. b4) 40... Qe6 {[%emt 0:02:22][%cal Oe4g5]} (40... Qxd5 $2 41. Qg4 Bf8 42. Qxc8 $18) 41. Qg4 {[%emt 0:07:18]} Qxg4 {[%emt 0:02:04]} 42. hxg4 {[%emt 0:00:14]} Rc2 {[%emt 0:01:30]} 43. f3 {[%emt 0:00:16]} Nf2 {[%emt 0:04:09]} 44. Rb1 $36 {[%emt 0:04:31][%mdl 2048] White is pushing.} Nd3 {[%emt 0:00:54] Against Rb2} 45. e4 {[%emt 0:02:43]} Bc5 {[%emt 0:14:34]} (45... Rc1+ $11 46. Rxc1 Nxc1) 46. Bxc5 {[%emt 0:01:17]} bxc5 {[%emt 0:00:28][%mdl 4096] Endgame KRN-KRN. White is a pawn up.} 47. a5 {[%emt 0:03:57]} (47. Rd1 Nc1 48. Ne3) 47... a6 {[%emt 0:04:02]} 48. Rd1 {[%emt 0:05:16]} Rc1 {[%emt 0:02:23]} 49. Rxc1 {[%emt 0:00:23]} Nxc1 {[%emt 0:00:01] KN-KN. White is a pawn up.} 50. b4 {[%emt 0:00:32]} ({Much worse is} 50. Ne7+ $6 Kf8 51. Nc6 Nxb3 $15) 50... cxb4 {[%emt 0:00:06]} 51. Nxb4 {[%emt 0:00:09]} Nb3 {[%emt 0:00:01]} 52. Nc6 {[%emt 0:01:51]} Kf8 {[%emt 0:02:01]} 53. Kf2 {[%emt 0:00:25]} Ke8 {[%emt 0:00:37]} 54. Ke3 {[%emt 0:00:19]} f6 {[%emt 0:01:02]} 55. Kf4 {[%emt 0:03:15]} Kd7 {[%emt 0:01:42]} 56. Nb4 {[%emt 0:01:04]} Ke6 {[%emt 0:00:21]} 57. Nxa6 {[%emt 0:00:20]} Nxa5 {[%emt 0:00:29]} 58. Nc7+ {[%emt 0:00:18]} Kf7 {[%emt 0:00:06]} 59. Ke3 {[%emt 0:00:07]} Nc4+ {[%emt 0:00:11]} 60. Kd4 {[%emt 0:00:09]} Ne5 {[%emt 0:00:05]} 61. Nd5 {[%emt 0:15:13]} Ke6 {[%emt 0:18:05]} 62. Nf4+ {[%emt 0:01:10]} Kf7 {[%emt 0:00:21]} 63. Nd3 {[%emt 0:00:08]} Nc6+ {[%emt 0:01:48]} (63... Nd7 $16 64. Kd5 Ke7) 64. Kc5 {[%emt 0:00:20]} Ne7 {[%emt 0:01:47]} (64... Na5 $16 65. Nf4 Nb3+ 66. Kd5 g6) 65. Kd6 $18 {[%emt 0:10:14]} Nc8+ {[%emt 0:02:17]} 66. Kc7 {[%emt 0:00:33]} Ne7 {[%emt 0:01:27]} 67. Kd7 {[%emt 0:00:14]} g5 $2 {[%emt 0:02:01]} (67... Ng6 68. g3 Nf8+ 69. Kd6 g5) 68. g3 {[%emt 0:03:22]} Ng6 {[%emt 0:02:30]} 69. Kd6 {[%emt 0:00:22]} Ne7 {[%emt 0:02:48]} 70. Kc7 $2 {[%emt 0:00:25]} (70. f4 $18 Nc8+ 71. Kc6) 70... Ng6 $16 {[%emt 0:01:59]} 71. Kd7 {[%emt 0:02:48]} (71. Kc6 $18) 71... Nf8+ {[%emt 0:02:10]} 72. Kd6 {[%emt 0:00:18]} Ne6 {[%emt 0:00:20]} 73. Kd5 {[%emt 0:03:47]} Nc7+ {[%emt 0:03:02]} 74. Kc4 {[%emt 0:00:48]} Ke6 {[%emt 0:00:42]} (74... Ne6 $16 75. Nc1 Nf8) 75. Nb4 {[%emt 0:00:40]} Ne8 {[%emt 0:01:45]} 76. Nc6 {[%emt 0:00:34]} (76. Nc2 $18) 76... Nd6+ {[%emt 0:03:18]} 77. Kd3 {[%emt 0:01:09]} ({White should play} 77. Kc5 $18) 77... Kf7 {[%emt 0:00:24]} 78. Kd4 {[%emt 0:01:20]} Nb5+ $2 {[%emt 0:00:42][%mdl 8192] [#]} (78... Ke6 $16 79. Kc5 Nb7+ 80. Kb4 Kf7) 79. Kc4 $1 $18 {[%emt 0:00:16]} Na3+ {[%emt 0:00:30]} 80. Kc3 {[%emt 0:01:28] Strongly threatening Nd4.} Kg6 $2 {[%emt 0:03:13]} (80... Nb5+ 81. Kb4 Nd6 82. Nd8+ Kf8) 81. Ne7+ {[%emt 0:00:53] White is clearly winning.} Kf7 {[%emt 0:00:07]} 82. Nf5 {[%emt 0:00:06]} Kg6 {[%emt 0:00:03]} (82... Nb5+ $142 83. Kb4 Nc7 84. Nxh6+ Ke6) 83. Nd6 {[%emt 0:00:26] Weighted Error Value: White=0.11 (very precise) /Black=0.16 (very precise)   Loses game:     	---       	Black=2      Mistake:       	White=4     	Black=9      Inaccurate:     	White=6     	Black=3      OK:         	White=35    	Black=25     Best:        	White=6     	Black=8      Strong:       	White=1     	---} 1-0

[Event "87th Tata Steel Challengers 2025"]
[Site "Wijk aan Zee"]
[Date "2025.02.02"]
[Round "13.6"]
[White "Bulmaga, Irina"]
[Black "Suleymanli, Aydin"]
[Result "0-1"]
[Annotator "ChessBase"]
[ECO "B85"]
[WhiteElo "2386"]
[BlackElo "2623"]
[PlyCount "76"]
[EventDate "2025.01.13"]
[EventType "tourn"]
[EventCountry "NED"]
[SourceTitle "playchess.com"]
[Source "ChessBase"]
[SourceQuality "1"]
[TimeControl "40/6000+30:20/3000+30:900+30"]

1. e4 {[%emt 0:00:04]} c5 {[%emt 0:00:06]} 2. Nf3 {[%emt 0:00:07]} e6 {[%emt 0:00:03]} 3. d4 {[%emt 0:00:12]} cxd4 {[%emt 0:00:04]} 4. Nxd4 {[%emt 0:00:07]} Nc6 {[%emt 0:00:03]} 5. Nc3 {[%emt 0:00:13]} Qc7 {[%emt 0:00:18]} 6. Be2 {[%emt 0:01:12]} a6 {[%emt 0:01:02]} 7. Be3 {[%emt 0:00:15]} Nf6 {[%emt 0:00:41]} 8. O-O {[%emt 0:00:28]} Be7 {[%emt 0:00:28]} 9. f4 {[%emt 0:00:23]} d6 {[%emt 0:01:10]} 10. Kh1 {[%emt 0:02:19]} O-O {[%emt 0:00:52]} 11. Qe1 {[%emt 0:00:10]} Nxd4 {[%emt 0:07:11]} 12. Bxd4 {[%emt 0:00:05]} b5 {[%emt 0:00:21]} 13. Qg3 {[%emt 0:00:13]} Bb7 {[%emt 0:01:18]} 14. a3 {[%emt 0:00:15]} Rad8 {[%emt 0:03:07]} 15. Rae1 {[%emt 0:00:47]} Bc6 {[%emt 0:19:34]} 16. Bf3 {[%emt 0:04:58]} Qb7 {[%emt 0:02:03]} 17. Nd1 {[%emt 0:03:01]} Ne8 {[%emt 0:08:50]} 18. c3 {[%emt 0:08:35]} f6 {[%emt 0:05:04]} 19. Nf2 {[%emt 0:11:51]} e5 {[%emt 0:02:29]} 20. Be3 {[%emt 0:00:36]} Nc7 {[%emt 0:00:57]} 21. f5 {[%emt 0:14:26]} d5 {[%emt 0:09:46]} 22. Bh5 {[%emt 0:02:42]} Bd6 {[%emt 0:03:05]} 23. Nd3 {[%emt 0:10:08]} dxe4 {[%emt 0:04:23]} 24. Nc5 {[%emt 0:01:08]} Bxc5 {[%emt 0:00:47]} 25. Bxc5 {[%emt 0:00:08]} Rd3 {[%emt 0:00:51]} 26. Qg4 {[%emt 0:02:48]} Rc8 {[%emt 0:02:53]} 27. Be7 {[%emt 0:05:20]} Nd5 {[%emt 0:02:12]} 28. Bc5 {[%emt 0:00:34]} e3 {[%emt 0:02:40]} 29. Rg1 {[%emt 0:09:16]} e2 {[%emt 0:04:18]} 30. Rxe2 {[%emt 0:12:57]} Nf4 {[%emt 0:00:09]} 31. Be3 {[%emt 0:03:46]} Nxe2 {[%emt 0:00:59]} 32. Qxe2 {[%emt 0:00:06]} Rcd8 {[%emt 0:01:02]} 33. Bg4 {[%emt 0:02:30]} Be4 {[%emt 0:06:57]} 34. Qf2 {[%emt 0:03:34]} Bxg2+ {[%emt 0:01:38]} 35. Rxg2 {[%emt 0:00:30]} Rd1+ {[%emt 0:00:09]} 36. Bxd1 {[%emt 0:03:00]} Rxd1+ {[%emt 0:00:13]} 37. Qg1 {[%emt 0:00:03]} Rxg1+ {[%emt 0:00:08]} 38. Kxg1 {[%emt 0:00:02]} Qe4 {[%emt 0:00:18]} 0-1

[Event "87th Tata Steel Challengers 2025"]
[Site "Wijk aan Zee"]
[Date "2025.02.02"]
[Round "13.7"]
[White "Lu, Miaoyi"]
[Black "Yakubboev, Nodirbek"]
[Result "0-1"]
[Annotator "ChessBase"]
[ECO "B90"]
[WhiteElo "2429"]
[BlackElo "2659"]
[PlyCount "64"]
[EventDate "2025.01.13"]
[EventType "tourn"]
[EventCountry "NED"]
[SourceTitle "playchess.com"]
[Source "ChessBase"]
[SourceQuality "1"]
[TimeControl "40/6000+30:20/3000+30:900+30"]

1. e4 {[%emt 0:00:02]} c5 {[%emt 0:00:12]} 2. Nf3 {[%emt 0:00:04]} d6 {[%emt 0:00:05]} 3. d4 {[%emt 0:00:04]} cxd4 {[%emt 0:00:06]} 4. Nxd4 {[%emt 0:00:03]} Nf6 {[%emt 0:00:07]} 5. Nc3 {[%emt 0:00:04]} a6 {[%emt 0:00:05]} 6. Rg1 {[%emt 0:00:10]} h5 {[%emt 0:05:36]} 7. Bg5 {[%emt 0:00:05]} e6 {[%emt 0:01:28]} 8. Qd2 {[%emt 0:00:03]} b5 {[%emt 0:03:14]} 9. a3 {[%emt 0:02:20]} Qc7 {[%emt 0:11:20]} 10. O-O-O {[%emt 0:09:58]} Nbd7 {[%emt 0:05:10]} 11. f4 {[%emt 0:26:22]} Rb8 {[%emt 0:14:43]} 12. Bd3 {[%emt 0:15:30]} b4 {[%emt 0:11:16]} 13. Nd5 {[%emt 0:10:44]} exd5 {[%emt 0:08:31]} 14. exd5 {[%emt 0:00:03]} bxa3 {[%emt 0:04:05]} 15. b3 {[%emt 0:14:38]} Bb7 {[%emt 0:11:21]} 16. Rge1+ {[%emt 0:03:17]} Kd8 {[%emt 0:00:42]} 17. Re3 {[%emt 0:07:23]} Nb6 {[%emt 0:06:51]} 18. Rde1 {[%emt 0:03:14]} Qc5 {[%emt 0:00:33]} 19. Be4 {[%emt 0:10:15]} Bxd5 {[%emt 0:01:41]} 20. Bxf6+ {[%emt 0:05:23]} gxf6 {[%emt 0:00:09]} 21. Bxd5 {[%emt 0:00:24]} Nxd5 {[%emt 0:00:46]} 22. Rd3 {[%emt 0:00:32]} f5 {[%emt 0:09:09]} 23. Kb1 {[%emt 0:00:43]} Bg7 {[%emt 0:04:53]} 24. Nc6+ {[%emt 0:00:04]} Qxc6 {[%emt 0:00:10]} 25. Rxd5 {[%emt 0:00:02]} Rh6 {[%emt 0:00:29]} 26. Qa5+ {[%emt 0:01:07]} Kc8 {[%emt 0:02:09]} 27. Rd3 {[%emt 0:00:09]} Re6 {[%emt 0:01:29]} 28. Rde3 {[%emt 0:00:49]} Rb5 {[%emt 0:02:16]} 29. Qxa3 {[%emt 0:00:19]} Rxe3 {[%emt 0:00:39]} 30. Rxe3 {[%emt 0:00:05]} Qb6 {[%emt 0:00:42]} 31. Rg3 {[%emt 0:01:23]} Ra5 {[%emt 0:00:11]} 32. Qxa5 {[%emt 0:00:09]} Qg1+ {[%emt 0:00:21]} 0-1